fUST/lending_fUST_20250925
["ID","MTS","AMOUNT","RATE_DAILY","PERIOD"]
[387607519,1758786633072,-207.11631385,0.00019346,2]
[387607521,1758786633082,-500.0,0.00019346,2]
[387607523,1758786633092,-500.0,0.00019346,2]
[387607525,1758786633102,-500.0,0.00019346,2]
[387607527,1758786633112,-500.0,0.00019346,2]
[387607529,1758786633122,-500.0,0.00019346,2]
[387607531,1758786633132,-500.0,0.00019346,2]
[387607533,1758786633141,-500.0,0.00019346,2]
[387607535,1758786633150,-500.0,0.00019346,2]
[387607537,1758786633160,-500.0,0.00019346,2]
[387607539,1758786633170,-500.0,0.00019346,2]
[387607541,1758786633180,-500.0,0.00019346,2]
[387607543,1758786633189,-500.0,0.00019346,2]
[387607545,1758786633199,-500.0,0.00019346,2]
[387607547,1758786633208,-500.0,0.00019346,2]
[387607549,1758786633219,-500.0,0.00019346,2]
[387607551,1758786633228,-249.51151214,0.00019346,2]
[387607553,1758786633238,-500.0,0.00019346,2]
[387607555,1758786633247,-500.0,0.00019346,2]
[387607557,1758786633257,-500.0,0.00019346,2]
[387607559,1758786633267,-500.0,0.00019346,2]
[387607561,1758786633277,-500.0,0.00019346,2]
[387607563,1758786633288,-500.0,0.00019346,2]
[387607565,1758786633301,-450.0390549,0.00019346,2]
[387607567,1758786633310,-480.0,0.00019346,2]
[387607569,1758786633320,-480.0,0.00019346,2]
[387607571,1758786633331,-480.0,0.00019346,2]
[387607573,1758786633340,-494.29,0.00019346,2]
[387607575,1758786633350,-480.0,0.00019346,2]
[387607577,1758786633359,-485.04190253,0.00019346,2]
[387607579,1758786633371,-480.0,0.00019346,2]
[387607581,1758786633382,-41080.44850264,0.00019346,2]
[387607583,1758786633391,-480.0,0.00019347,2]
[387607585,1758786633400,-480.0,0.00019347,2]
[387607587,1758786633409,-480.0,0.00019347,2]
[387607589,1758786633419,-455.71522652,0.00019347,2]
[387607591,1758786633428,-467.37971275,0.00019347,2]
[387607593,1758786633437,-480.0,0.00019347,2]
[387607595,1758786633447,-480.0,0.00019347,2]
[387607597,1758786633456,-480.0,0.00019347,2]
[387607599,1758786633468,-481.61269337,0.00019347,2]
[387607601,1758786633479,-480.0,0.00019347,2]
[387607603,1758786633489,-480.0,0.00019347,2]
[387607605,1758786633498,-480.0,0.00019347,2]
[387607606,1758786633508,-450.84004972,0.00019347,2]
[387607608,1758786633521,-29.15995028,0.00019347,2]
[387607610,1758786633533,-492.78435447,0.00019347,2]
[387607611,1758786633543,-533.73057819,0.00019347,2]
[387607612,1758786633552,-11.5517625,0.00019347,2]
[387607629,1758786638492,-775.54,0.00019342,3]
[387607630,1758786638502,-480.0,0.00019345,2]
[387607631,1758786638511,-150.38928888,0.00019347,2]
[387607632,1758786638521,-480.0,0.00019347,2]
[387607633,1758786638531,-480.0,0.00019347,2]
[387607634,1758786638542,-480.0,0.00019347,2]
[387607635,1758786638552,-484.36760473,0.00019347,2]
[387607636,1758786638562,-491.34273836,0.00019347,2]
[387607637,1758786638572,-483.93724099,0.00019347,2]
[387607639,1758786638581,-480.0,0.00019347,2]
[387607641,1758786638590,-480.0,0.00019347,2]
[387607642,1758786638600,-480.0,0.00019347,2]
[387607643,1758786638609,-299.91959951,0.00019347,2]
[387607644,1758786638618,-480.0,0.00019347,2]
[387607645,1758786638628,-480.0,0.00019347,2]
[387607646,1758786638637,-480.0,0.00019347,2]
[387607647,1758786638646,-480.0,0.00019347,2]
[387607648,1758786638656,-480.0,0.00019347,2]
[387607649,1758786638666,-529.74132795,0.00019347,2]
[387607650,1758786638675,-480.0,0.00019347,2]
[387607651,1758786638685,-480.0,0.00019347,2]
[387607652,1758786638695,-1650.14,0.00019347,2]
[387607653,1758786638705,-480.0,0.00019347,2]
[387607654,1758786638714,-489.22798665,0.00019347,2]
[387607655,1758786638724,-480.0,0.00019347,2]
[387607656,1758786638733,-480.0,0.00019347,2]
[387607657,1758786638742,-482.61048095,0.00019347,2]
[387607658,1758786638752,-480.0,0.00019347,2]
[387607659,1758786638761,-480.0,0.00019347,2]
[387607660,1758786638771,-480.0,0.00019347,2]
[387607661,1758786638780,-480.0,0.00019347,2]
[387607662,1758786638791,-481.36940069,0.00019347,2]
[387607663,1758786638800,-235.12993693,0.00019347,2]
[387607664,1758786638812,-244.87006307,0.00019347,2]
[387607665,1758786638822,-500.0,0.00019347,2]
[387607666,1758786638831,-151.0,0.00019347,2]
[387607667,1758786638841,-480.0,0.00019347,2]
[387607668,1758786638850,-151.0,0.00019347,2]
[387607669,1758786638859,-616.94142351,0.00019347,2]
[387607670,1758786638870,-151.0,0.00019347,2]
[387607671,1758786638880,-467.37971275,0.00019347,2]
[387607672,1758786638889,-459.42238123,0.00019347,2]
[387607673,1758786638898,-480.0,0.00019347,2]
[387607674,1758786638908,-480.0,0.00019347,2]
[387607675,1758786638917,-480.0,0.00019347,2]
[387607676,1758786638927,-332.11720013,0.00019347,2]
[387607677,1758786638937,-480.0,0.00019347,2]
[387607678,1758786638946,-480.0,0.00019347,2]
[387607679,1758786638956,-480.0,0.00019347,2]
[387607680,1758786638965,-377.78911882,0.00019347,2]
[387607681,1758786638977,-102.21088118,0.00019347,2]
[387607682,1758786638986,-480.0,0.00019347,2]
[387607683,1758786638995,-480.0,0.00019347,2]
[387607684,1758786639005,-480.0,0.00019347,2]
[387607685,1758786639014,-508.19,0.00019347,2]
[387607686,1758786639023,-480.0,0.00019347,2]
[387607687,1758786639034,-480.0,0.00019347,2]
[387607688,1758786639044,-173.32683059,0.00019347,2]
[387607690,1758786639053,-151.0,0.00019347,2]
[387607692,1758786639062,-151.94898114,0.00019347,2]
[387607693,1758786639072,-199.3206496,0.00019347,2]
[387607694,1758786639082,-293.70166379,0.00019347,2]
[387607695,1758786639091,-560.4,0.00019348,2]
[387607696,1758786639100,-485.46637418,0.00019349,2]
[387607697,1758786639109,-500.0,0.00019351,2]
[387607698,1758786639118,-296.90811891,0.00019351,2]
[387607699,1758786639127,-297.62786111,0.00019351,2]
[387607700,1758786639136,-500.0,0.00019351,2]
[387607701,1758786639146,-500.0,0.00019351,2]
[387607702,1758786639155,-500.0,0.00019351,2]
[387607703,1758786639164,-500.0,0.00019351,2]
[387607704,1758786639174,-500.0,0.00019351,2]
[387607705,1758786639183,-500.0,0.00019351,2]
[387607706,1758786639193,-500.0,0.00019351,2]
[387607708,1758786639203,-509.06569795,0.00019351,2]
[387607711,1758786639420,-500.0,0.00019351,2]
[387607712,1758786639429,-500.0,0.00019351,2]
[387607713,1758786639438,-500.0,0.00019351,2]
[387607714,1758786639447,-500.0,0.00019351,2]
[387607715,1758786639457,-500.0,0.00019351,2]
[387607716,1758786639466,-500.0,0.00019351,2]
[387607717,1758786639475,-500.0,0.00019351,2]
[387607718,1758786639484,-156.34598856,0.00019351,2]
[387607719,1758786639493,-300.0,0.00019351,2]
[387607720,1758786639503,-300.0,0.00019351,2]
[387607721,1758786639512,-336.02240587,0.00019351,2]
[387607722,1758786639521,-33104.16747939,0.00019352,2]
[387607723,1758786639537,-336895.83252061,0.00019352,2]
[387607724,1758786639546,-506.92875789,0.00019373,2]
[387607725,1758786639556,-500.0,0.00019373,2]
[387607726,1758786639565,-500.0,0.00019373,2]
[387607727,1758786639574,-500.0,0.00019373,2]
[387607728,1758786639583,-500.0,0.00019373,2]
[387607729,1758786639592,-432.43637156,0.00019373,2]
[387607730,1758786639602,-500.0,0.00019373,2]
[387607731,1758786639611,-480.0,0.00019619,2]
[387607732,1758786639619,-480.0,0.00019619,2]
[387607733,1758786639629,-480.0,0.00019619,2]
[387607734,1758786639638,-190.89602151,0.0001962,2]
[387607735,1758786639647,-529.95603827,0.0001962,2]
[387607736,1758786639656,-480.0,0.0001962,2]
[387607737,1758786639666,-480.0,0.0001962,2]
[387607738,1758786639676,-480.0,0.0001962,2]
[387607739,1758786639685,-480.0,0.0001962,2]
[387607740,1758786639694,-480.0,0.0001962,2]
[387607741,1758786639704,-480.0,0.0001962,2]
[387607742,1758786639714,-500.0,0.00019621,2]
[387607743,1758786639723,-247.43859374,0.00019621,2]
[387607744,1758786639732,-248.49,0.00019621,2]
[387607745,1758786639741,-480.0,0.00019621,2]
[387607746,1758786639751,-625.93806075,0.00019621,2]
[387607747,1758786639762,-1650.14,0.00019621,2]
[387607748,1758786639771,-480.0,0.00019621,2]
[387607749,1758786639781,-480.0,0.00019621,2]
[387607750,1758786639791,-480.0,0.00019621,2]
[387607751,1758786639801,-480.0,0.00019621,2]
[387607752,1758786639811,-296.8550685,0.00019621,2]
[387607753,1758786639821,-480.0,0.00019621,2]
[387607754,1758786639830,-560.4,0.00019622,2]
[387607755,1758786639840,-597.6536023,0.00019893,2]
[387607756,1758786639850,-480.0,0.00019893,2]
[387607757,1758786639859,-480.0,0.00019893,2]
[387607758,1758786639869,-480.0,0.00019894,2]
[387607759,1758786639878,-484.37,0.00019894,2]
[387607760,1758786639888,-480.0,0.00019894,2]
[387607761,1758786639897,-480.0,0.00019894,2]
[387607762,1758786639908,-526.44835605,0.00019895,2]
[387607763,1758786639917,-480.0,0.00019895,2]
[387607764,1758786639927,-1650.14,0.00019895,2]
[387607765,1758786639937,-480.0,0.00019895,2]
[387607766,1758786639946,-480.0,0.00019895,2]
[387607767,1758786639955,-480.0,0.00019895,2]
[387607768,1758786639965,-520.0,0.00019895,2]
[387607769,1758786639974,-560.4,0.00019896,2]
[387607770,1758786639984,-278.77732588,0.000199,2]
[387607771,1758786639993,-500.0,0.00019921,2]
[387607772,1758786640002,-1000.0,0.00019921,2]
[387607773,1758786640012,-1000.0,0.00019921,2]
[387607775,1758786640022,-1000.0,0.00019921,2]
[387607777,1758786640032,-1000.0,0.00019921,2]
[387607778,1758786640043,-501.69416085,0.00019973,2]
[387607779,1758786640052,-500.0,0.00019973,2]
[387607780,1758786640061,-504.46953015,0.00019973,2]
[387607781,1758786640071,-238.57457338,0.00019973,2]
[387607783,1758786640169,-501.7698393,0.00019973,2]
[387607784,1758786640180,-500.0,0.00019973,2]
[387607785,1758786640190,-406.79269329,0.00019973,2]
[387607786,1758786640200,-500.0,0.00019973,2]
[387607787,1758786640209,-500.0,0.00019973,2]
[387607788,1758786640219,-100000.0,0.0001999,2]
[387607789,1758786640228,-480.0,0.00020167,2]
[387607790,1758786640238,-480.0,0.00020167,2]
[387607791,1758786640247,-480.0,0.00020168,2]
[387607792,1758786640257,-480.0,0.00020168,2]
[387607793,1758786640267,-480.0,0.00020169,2]
[387607794,1758786640276,-1650.14,0.00020169,2]
[387607795,1758786640286,-480.0,0.00020169,2]
[387607796,1758786640300,-480.0,0.00020169,2]
[387607797,1758786640310,-560.4,0.0002017,2]
[387607798,1758786640320,-12942.22820241,0.00020246,2]
[387607799,1758786640330,-990.54451475,0.00020396,2]
[387607800,1758786640341,-480.0,0.00020441,2]
[387607801,1758786640351,-480.0,0.00020442,2]
[387607802,1758786640360,-480.0,0.00020442,2]
[387607803,1758786640370,-1650.14,0.00020443,2]
[387607804,1758786640380,-322.52211991,0.00020443,2]
[387607805,1758786640393,-480.0,0.00020443,2]
[387607806,1758786640407,-560.4,0.00020444,2]
[387607807,1758786640417,-774.33341942,0.00020468,2]
[387607808,1758786640426,-500.0,0.00020468,2]
[387607809,1758786640435,-500.0,0.00020468,2]
[387607810,1758786640445,-1500.0,0.00020468,2]
[387607811,1758786640455,-504.83976007,0.00020521,2]
[387607813,1758786640465,-1000.0,0.00020521,2]
[387607815,1758786640474,-1000.0,0.00020521,2]
[387607817,1758786640484,-500.0,0.00020563,2]
[387607819,1758786640493,-571.63619755,0.00020563,2]
[387607821,1758786640502,-480.0,0.00020715,2]
[387607823,1758786640512,-480.0,0.00020716,2]
[387607825,1758786640521,-480.0,0.00020716,2]
[387607826,1758786640530,-1650.14,0.00020717,2]
[387607829,1758786640541,-480.0,0.00020717,2]
[387607831,1758786640550,-560.4,0.00020718,2]
[387607833,1758786640559,-160.0,0.0002075,2]
[387607834,1758786640568,-150.0,0.00020758,2]
[387607836,1758786640577,-905.2371389,0.00020794,2]
[387607838,1758786640587,-340.42,0.00020893,2]
[387607840,1758786640596,-278.77732568,0.00020972,2]
[387607842,1758786640605,-480.0,0.00020989,2]
[387607844,1758786640615,-480.0,0.0002099,2]
[387607846,1758786640624,-236.0711418,0.0002099,2]
[387607848,1758786640634,-1650.14,0.00020991,2]
[387607851,1758786640643,-480.0,0.00020991,2]
[387607853,1758786640652,-560.4,0.00020992,2]
[387607855,1758786640661,-1500.0,0.00021068,2]
[387607857,1758786640670,-1500.0,0.00021068,2]
[387607859,1758786640680,-1000.0,0.0002111,2]
[387607861,1758786640689,-480.0,0.00021263,2]
[387607863,1758786640698,-480.0,0.00021264,2]
[387607865,1758786640707,-1650.14,0.00021265,2]
[387607867,1758786640716,-480.0,0.00021265,2]
[387607869,1758786640725,-560.4,0.00021266,2]
[387607871,1758786640735,-200.0,0.00021298,2]
[387607873,1758786640744,-480.0,0.00021537,2]
[387607875,1758786640753,-480.0,0.00021538,2]
[387607877,1758786640763,-1650.14,0.00021539,2]
[387607879,1758786640772,-621.30699316,0.00021539,2]
[387607881,1758786640782,-560.4,0.0002154,2]
[387607883,1758786640792,-1000.0,0.00021616,2]
[387607885,1758786640801,-326.53650875,0.00021658,2]
[387607887,1758786640811,-480.0,0.00021811,2]
[387607889,1758786640821,-299.51374591,0.00021812,2]
[387607891,1758786640830,-1650.14,0.00021813,2]
[387607893,1758786640839,-560.4,0.00021814,2]
[387607895,1758786640848,-160.0,0.00021906,2]
[387607896,1758786640857,-160.0,0.00021906,2]
[387607899,1758786640867,-233.66602051,0.00021906,2]
[387607901,1758786640876,-152.58499236,0.00021918,2]
[387607903,1758786640886,-278.77732568,0.00022044,2]
[387607905,1758786640895,-480.0,0.00022085,2]
[387607907,1758786640904,-1650.14,0.00022087,2]
[387607909,1758786640914,-560.4,0.00022088,2]
[387607910,1758786640923,-905.2371389,0.00022288,2]
[387607912,1758786640933,-170.1,0.00022333,3]
[387607914,1758786640942,-480.0,0.00022359,2]
[387607916,1758786640951,-1650.14,0.00022361,2]
[387607918,1758786640960,-560.4,0.00022362,2]
[387607920,1758786640970,-500.0,0.00022425,2]
[387607922,1758786640979,-500.0,0.00022529,2]
[387607924,1758786640988,-372.21444045,0.00022633,2]
[387607926,1758786640998,-1650.14,0.00022635,2]
[387607928,1758786641007,-560.4,0.00022636,2]
[387607930,1758786641017,-150.0,0.00022645,2]
[387607932,1758786641027,-500.0,0.00022721,2]
[387607934,1758786641036,-1650.14,0.00022909,2]
[387607936,1758786641046,-560.4,0.0002291,2]
[387607938,1758786641055,-193.285666,0.00022912,2]
[387607940,1758786641064,-500.0,0.00023034,2]
[387607942,1758786641074,-500.0,0.00023052,2]
[387607944,1758786641083,-182.56495849,0.0002306,2]
[387607946,1758786641092,-182.56495849,0.0002306,2]
[387607948,1758786641103,-278.77732568,0.00023116,2]
[387607950,1758786641113,-500.0,0.00023162,2]
[387607952,1758786641123,-329.820497,0.00023179,2]
[387607954,1758786641133,-1650.14,0.00023183,2]
[387607956,1758786641143,-560.4,0.00023184,2]
[387607958,1758786641153,-500.0,0.00023274,2]
[387607960,1758786641163,-718.48,0.00023287,2]
[387607962,1758786641174,-3134.03832467,0.00023307,2]
[387607964,1758786641183,-182.56495849,0.00023337,2]
[387607966,1758786641193,-500.0,0.00023344,2]
[387607968,1758786641203,-1650.14,0.00023457,2]
[387607970,1758786641213,-560.4,0.00023458,2]
[387607972,1758786641222,-182.56495849,0.00023615,7]
[387607974,1758786641231,-846.18,0.000237,2]
[387607976,1758786641241,-500.0,0.00023709,2]
[387607978,1758786641251,-1650.14,0.00023731,2]
[387607980,1758786641261,-560.4,0.00023732,2]
[387607982,1758786641271,-905.2371389,0.00023782,2]
[387607984,1758786641283,-505.61204843,0.00023872,2]
[387607986,1758786641298,-182.56495849,0.00023892,7]
[387607988,1758786641308,-170.1,0.00023939,4]
[387607990,1758786641317,-574.36899308,0.00023948,2]
[387607992,1758786641327,-1650.14,0.00024005,2]
[387607994,1758786641337,-560.4,0.00024006,2]
[387607996,1758786641347,-614.002,0.00024052,5]
[387607998,1758786641356,-182.56495849,0.00024169,14]
[387608000,1758786641366,-182.56495849,0.00024169,14]
[387608002,1758786641376,-278.77732568,0.00024187,2]
[387608004,1758786641386,-1650.14,0.00024279,2]
[387608006,1758786641395,-560.4,0.0002428,2]
[387608008,1758786641404,-1650.14,0.00024553,2]
[387608010,1758786641414,-560.4,0.00024554,2]
[387608012,1758786641424,-171.86,0.00024602,2]
[387608014,1758786641433,-151.0,0.00024658,2]
[387608016,1758786641442,-1650.14,0.00024827,2]
[387608018,1758786641451,-560.4,0.00024828,2]
[387608020,1758786641461,-394.58552777,0.00024873,2]
[387608022,1758786641470,-501.7140521,0.00024873,2]
[387608024,1758786641479,-500.98143617,0.00024873,2]
[387608026,1758786641489,-168.0,0.00024882,2]
[387608028,1758786641498,-415995.118808,0.000249,2]
[387608030,1758786641507,-198.0,0.00024932,2]
[387608032,1758786641517,-168.0,0.00024968,7]
[387608034,1758786641527,-168.0,0.00025036,2]
[387608036,1758786641538,-168.0,0.00025056,2]
[387608038,1758786641548,-1650.14,0.00025101,2]
[387608040,1758786641558,-560.4,0.00025102,2]
[387608042,1758786641568,-718.48,0.00025205,4]
[387608044,1758786641578,-168.0,0.00025224,2]
[387608046,1758786641587,-278.77732568,0.00025259,3]
[387608048,1758786641597,-905.2371389,0.00025276,2]
[387608050,1758786641607,-179.62279214,0.00025334,2]
[387608052,1758786641617,-714.12808525,0.00025374,2]
[387608054,1758786641626,-1650.14,0.00025375,2]
[387608056,1758786641636,-560.4,0.00025376,2]
[387608058,1758786641646,-2856.51234102,0.00025463,2]
[387608060,1758786641655,-168.0,0.00025537,2]
[387608062,1758786641665,-170.1,0.00025545,5]
[387608064,1758786641674,-1650.30736553,0.00025649,2]
[387608066,1758786641684,-560.51342909,0.0002565,2]
[387608068,1758786641693,-168.0,0.00025653,2]
[387608070,1758786641703,-168.0,0.00025665,2]
[387608072,1758786641712,-250.0,0.00025797,2]
[387608074,1758786641722,-168.0,0.00026022,2]
[387608076,1758786641732,-168.0,0.00026062,2]
[387608078,1758786641741,-350.0,0.00026177,2]
[387608080,1758786641750,-168.0,0.00026302,2]
[387608082,1758786641760,-151.0,0.00026331,5]
[387608084,1758786641769,-151.89653285,0.00026331,5]
[387608086,1758786641778,-278.77732568,0.00026331,5]
[387608088,1758786641788,-846.18,0.000264,2]
[387608090,1758786641798,-229.14,0.00026494,2]
[387608092,1758786641807,-168.0,0.00026559,2]
[387608094,1758786641817,-151.0,0.000266,17]
[387608096,1758786641827,-151.0,0.00026605,5]
[387608098,1758786641836,-4243.2404065,0.00026611,2]
[387608100,1758786641845,-5331.7272468,0.00026644,2]
[387608102,1758786641854,-168.0,0.00026649,2]
[387608104,1758786641864,-168.0,0.00026698,2]
[387608106,1758786641873,-800.0,0.00026726,2]
[387608108,1758786641883,-168.0,0.00026862,2]
[387608110,1758786641892,-168.0,0.00026873,2]
[387608112,1758786641901,-209.83671391,0.00026879,5]
[387608114,1758786641910,-168.0,0.00026908,2]
[387608116,1758786641919,-836.49770281,0.00026962,2]
[387608118,1758786641929,-168.0,0.00027059,2]
[387608119,1758786641938,-168.0,0.00027073,2]
[387608121,1758786641947,-718.48,0.00027123,6]
[387608124,1758786641958,-168.0,0.00027143,2]
[387608126,1758786641967,-170.1,0.00027151,6]
[387608127,1758786641976,-480.0,0.00027219,2]
[387608129,1758786641986,-480.0,0.00027219,2]
[387608132,1758786641995,-68736.60287272,0.0002722,2]
[387608134,1758786642005,-168.0,0.00027242,2]
[387608135,1758786642014,-489.84047527,0.00027273,2]
[387608136,1758786642024,-500.0,0.00027273,2]
[387608137,1758786642033,-168.0,0.00027275,2]
[387608138,1758786642043,-160.0,0.000273,7]
[387608139,1758786642053,-2947.87783476,0.0002734,2]
[387608140,1758786642062,-3134.03832467,0.0002734,2]
[387608141,1758786642071,-150.0,0.00027397,5]
[387608142,1758786642081,-278.77732568,0.00027403,7]
[387608143,1758786642091,-168.0,0.00027432,2]
[387608144,1758786642100,-200.88282832,0.00027439,10]
[387608146,1758786642110,-287.46203916,0.0002744,2]
[387608148,1758786642119,-188912.20702347,0.0002744,2]
[387608151,1758786642134,-1632.87379713,0.0002744,2]
[387608153,1758786642145,-3138.10745902,0.0002744,2]
[387608155,1758786642157,-885.96677516,0.0002744,2]
[387608157,1758786642168,-3356.4254304,0.0002744,2]
[387608360,1758786643996,-94.41957882,0.0002744,2]
[387608365,1758786644034,-8125.8315042,0.0002744,2]
[387608673,1758786664988,-168.05568648,0.00019125,2]
[387608674,1758786670321,-208.02593212,0.00019125,2]
[387608675,1758786673516,-319.75766874,0.00019125,2]
[387608676,1758786677948,-104.16071266,0.00019125,2]
[387608680,1758786734085,153.44,0.00029354,60]
[387608683,1758786773112,306.668066,0.00018348,2]
[387608684,1758786774541,-800.0,0.00019235,2]
[387608685,1758786774571,-319.75766874,0.00019245,2]
[387608686,1758786774602,-480.0,0.00019345,2]
[387608687,1758786774635,-480.0,0.00019345,2]
[387608688,1758786774666,-480.0,0.00019345,2]
[387608689,1758786774697,-480.0,0.00019345,2]
[387608690,1758786774727,-480.0,0.00019345,2]
[387608691,1758786774758,-480.0,0.00019345,2]
[387608692,1758786774790,-480.0,0.00019345,2]
[387608693,1758786774820,-480.0,0.00019345,2]
[387608695,1758786777086,280.5549906,0.00018485,2]
[387608702,1758786884971,-480.0,0.00019345,2]
[387608703,1758786885002,-480.0,0.00019345,2]
[387608704,1758786885032,-480.0,0.00019345,2]
[387608705,1758786885063,-480.0,0.00019345,2]
[387608706,1758786885094,-480.0,0.00019345,2]
[387608707,1758786885125,-480.0,0.00019345,2]
[387608708,1758786885155,-504.88176214,0.00019345,2]
[387608710,1758786885186,-299.75954113,0.00019345,2]
[387608711,1758786885217,-480.0,0.00019345,2]
[387608712,1758786885247,-480.0,0.00019345,2]
[387608713,1758786885281,-230.72739346,0.00019345,2]
[387608722,1758787067714,-688.21598138,0.00019319,2]
[387608723,1758787067748,-249.27260654,0.00019345,2]
[387608724,1758787067781,-480.0,0.00019345,2]
[387608725,1758787067815,-480.0,0.00019345,2]
[387608726,1758787067848,-480.0,0.00019345,2]
[387608727,1758787067881,-480.0,0.00019345,2]
[387608728,1758787067914,-480.0,0.00019345,2]
[387608729,1758787067950,-480.0,0.00019345,2]
[387608730,1758787067983,-480.0,0.00019345,2]
[387608731,1758787068015,-480.0,0.00019345,2]
[387608733,1758787075648,1000.0,0.0001835,2]
[387608734,1758787096540,154.37318964,0.00019251,2]
[387608739,1758787115850,-480.0,0.00019345,2]
[387608740,1758787115885,-480.0,0.00019345,2]
[387608741,1758787115919,-480.0,0.00019345,2]
[387608742,1758787115956,-957.28,0.00019345,2]
[387608743,1758787115988,-480.0,0.00019345,2]
[387608744,1758787116021,-480.0,0.00019345,2]
[387608745,1758787116054,-480.0,0.00019345,2]
[387608746,1758787116087,-489.21,0.00019345,2]
[387608747,1758787116124,-483.67591309,0.00019345,2]
[387608749,1758787125585,-487.38084657,0.00019345,2]
[387608750,1758787125620,-480.0,0.00019345,2]
[387608751,1758787125759,-523.53162253,0.00019345,2]
[387608752,1758787125793,-483.44882074,0.00019345,2]
[387608753,1758787125827,-488.99272708,0.00019345,2]
[387608754,1758787125860,-483.67943538,0.00019345,2]
[387608755,1758787125891,-493.06392149,0.00019345,2]
[387608756,1758787125921,-480.0,0.00019345,2]
[387608757,1758787125955,-535.71,0.00019345,2]
[387608758,1758787125988,-480.0,0.00019345,2]
[387608759,1758787170906,-482.45334388,0.00019345,2]
[387608760,1758787170937,-492.79393554,0.00019345,2]
[387608761,1758787170966,-311.85054134,0.00019345,2]
[387608762,1758787170997,-480.0,0.00019345,2]
[387608763,1758787171027,-489.70005109,0.00019345,2]
[387608764,1758787171058,-480.0,0.00019345,2]
[387608765,1758787171089,-304.0358712,0.00019345,2]
[387608766,1758787171118,-485.42028149,0.00019345,2]
[387608767,1758787171146,-485.51935259,0.00019345,2]
[387608768,1758787171176,-488.72705981,0.00019345,2]
[387608769,1758787171207,-480.0,0.00019345,2]
[387608771,1758787180750,-244.43148459,0.00019345,2]
[387608772,1758787180780,-480.0,0.00019345,2]
[387608773,1758787180809,-493.99463625,0.00019346,2]
[387608774,1758787180839,-480.0,0.00019346,2]
[387608775,1758787180869,-481.43059683,0.00019346,2]
[387608776,1758787180898,-480.0,0.00019346,2]
[387608777,1758787221134,-547.33,0.00019345,2]
[387608778,1758787221171,-485.45131478,0.00019345,2]
[387608779,1758787221202,-480.0,0.00019345,2]
[387608780,1758787221231,-195.1340158,0.00019345,2]
[387608781,1758787221261,-500.0,0.00019345,2]
[387608782,1758787221296,-480.0,0.00019345,2]
[387608783,1758787221442,-491.52753753,0.00019346,2]
[387608784,1758787221726,-3940.12473633,0.00019346,2]
[387608785,1758787221772,-2119.76052734,0.00019346,2]
[387608786,1758787221807,-480.0,0.00019347,2]
[387608787,1758787221839,-480.0,0.00019347,2]
[387608788,1758787221871,-480.0,0.00019347,2]
[387608789,1758787221901,-480.0,0.00019347,2]
[387608790,1758787221934,-79.51894532,0.00019347,2]
[387608791,1758787222037,-1761.45105468,0.00019347,2]
[387608792,1758787222068,-480.0,0.00019347,2]
[387608793,1758787222098,-480.0,0.00019347,2]
[387608794,1758787222129,-480.0,0.00019347,2]
[387608795,1758787222160,-480.0,0.0001935,2]
[387608796,1758787222191,-480.0,0.00019351,2]
[387608797,1758787222223,-625.4741397,0.00019351,2]
[387608798,1758787222423,-480.0,0.00019351,2]